fUSD/lending_fUSD_20241222
["ID","MTS","AMOUNT","RATE_DAILY","PERIOD"]
[346326851,1734893444124,-500.0,0.00019726,2]
[346326852,1734893444134,-233.51,0.00019726,2]
[346326853,1734893444143,-570.5,0.00019726,2]
[346326854,1734893444152,-579.28,0.00019726,2]
[346326855,1734893444162,-500.0,0.00019726,2]
[346326856,1734893444171,-500.0,0.00019726,2]
[346326857,1734893444180,-500.0,0.00019726,2]
[346326858,1734893444189,-500.0,0.00019726,2]
[346326859,1734893444198,-500.0,0.00019726,2]
[346326860,1734893444207,-500.0,0.00019726,2]
[346326861,1734893444217,-500.0,0.00019726,2]
[346326862,1734893444226,-506.55,0.00019726,2]
[346326863,1734893444235,-500.0,0.00019726,2]
[346326864,1734893444244,-539.92224929,0.00019726,2]
[346326865,1734893444254,-500.0,0.00019726,2]
[346326866,1734893444263,-500.0,0.00019726,2]
[346326867,1734893444273,-500.0,0.00019726,2]
[346326868,1734893444282,-500.0,0.00019726,2]
[346326869,1734893444292,-535.06,0.00019726,2]
[346326870,1734893444303,-500.0,0.00019726,2]
[346326871,1734893444312,-500.0,0.00019726,2]
[346326872,1734893444322,-500.0,0.00019726,2]
[346326873,1734893444331,-399.27,0.00019726,2]
[346326874,1734893444340,-217.48,0.00019726,2]
[346326875,1734893444350,-500.0,0.00019726,2]
[346326876,1734893444360,-500.0,0.00019726,2]
[346326877,1734893444369,-500.0,0.00019726,2]
[346326878,1734893444379,-500.0,0.00019726,2]
[346326879,1734893444388,-500.0,0.00019726,2]
[346326880,1734893444398,-500.0,0.00019726,2]
[346326881,1734893444407,-500.0,0.00019726,2]
[346326882,1734893444417,-500.0,0.00019726,2]
[346326883,1734893444427,-500.0,0.00019726,2]
[346326884,1734893444436,-1208.19,0.00019726,2]
[346326885,1734893444446,-500.0,0.00019726,2]
[346326886,1734893444456,-500.0,0.00019726,2]
[346326887,1734893444465,-500.0,0.00019726,2]
[346326888,1734893444475,-507.34,0.00019726,2]
[346326889,1734893444485,-500.0,0.00019726,2]
[346326890,1734893444495,-539.22,0.00019726,2]
[346326891,1734893444505,-662.4,0.00019726,2]
[346326892,1734893444515,-1633.04,0.00019726,2]
[346326893,1734893444524,-500.0,0.00019726,2]
[346326894,1734893444534,-512.36,0.00019726,2]
[346326895,1734893444546,-500.0,0.00019726,2]
[346326896,1734893444557,-500.0,0.00019726,2]
[346326897,1734893444566,-213.14290168,0.00019726,2]
[346326898,1734893444576,-530.79,0.00019726,2]
[346326899,1734893444586,-500.0,0.00019726,2]
[346326900,1734893444596,-500.0,0.00019726,2]
[346326901,1734893444605,-594.57,0.00019726,2]
[346326902,1734893444615,-545.28,0.00019726,2]
[346326903,1734893444624,-500.0,0.00019726,2]
[346326904,1734893444634,-1099.48,0.00019726,2]
[346326905,1734893444643,-638.18,0.00019726,2]
[346326906,1734893444652,-1170.05,0.00019726,2]
[346326907,1734893444662,-500.0,0.00019726,2]
[346326908,1734893444672,-500.0,0.00019726,2]
[346326909,1734893444681,-672.68,0.00019726,2]
[346326910,1734893444691,-500.0,0.00019726,2]
[346326911,1734893444700,-1651.57,0.00019726,2]
[346326912,1734893444711,-500.0,0.00019726,2]
[346326913,1734893444720,-500.0,0.00019726,2]
[346326914,1734893444729,-552.91,0.00019726,2]
[346326915,1734893444739,-623.97,0.00019726,2]
[346326916,1734893444748,-762.74,0.00019726,2]
[346326917,1734893444758,-2203.56,0.00019726,2]
[346326918,1734893444768,-878.66,0.00019726,2]
[346326919,1734893444777,-3362.75,0.00019726,2]
[346326920,1734893444787,-566.8,0.00019726,2]
[346326921,1734893444796,-500.0,0.00019726,2]
[346326922,1734893444807,-576.02,0.00019726,2]
[346326923,1734893444816,-500.0,0.00019726,2]
[346326924,1734893444825,-554.4,0.00019726,2]
[346326925,1734893444835,-1296.53,0.00019726,2]
[346326926,1734893444844,-500.0,0.00019726,2]
[346326927,1734893444854,-500.0,0.00019726,2]
[346326928,1734893444863,-500.0,0.00019726,2]
[346326929,1734893444873,-865.42,0.00019726,2]
[346326930,1734893444882,-500.0,0.00019726,2]
[346326931,1734893444892,-21131.67,0.00019726,2]
[346326932,1734893444901,-500.0,0.00019726,2]
[346326933,1734893444911,-700.1,0.00019726,2]
[346326934,1734893444921,-642.47,0.00019726,2]
[346326935,1734893444930,-3513.75,0.00019726,2]
[346326936,1734893444939,-1016.55,0.00019726,2]
[346326937,1734893444949,-500.0,0.00019726,2]
[346326938,1734893444958,-28871.47,0.00019726,2]
[346326939,1734893444968,-500.0,0.00019726,2]
[346326940,1734893444978,-1283.95,0.00019726,2]
[346326941,1734893444987,-500.0,0.00019726,2]
[346326942,1734893444997,-500.0,0.00019726,2]
[346326943,1734893445006,-500.0,0.00019726,2]
[346326944,1734893445016,-520.85,0.00019726,2]
[346326945,1734893445025,-500.0,0.00019726,2]
[346326947,1734893445035,-500.0,0.00019726,2]
[346326948,1734893445045,-1043.39,0.00019726,2]
[346326949,1734893445056,-500.0,0.00019726,2]
[346326950,1734893445065,-4411.21,0.00019726,2]
[346326951,1734893445075,-1084.73,0.00019726,2]
[346326952,1734893445084,-500.0,0.00019726,2]
[346326953,1734893445093,-809.93,0.00019726,2]
[346326954,1734893445102,-4803.01,0.00019726,2]
[346326955,1734893445111,-48524.55,0.00019726,2]
[346326956,1734893445121,-2643.97,0.00019726,2]
[346326957,1734893445130,-2396.95,0.00019726,2]
[346326958,1734893445139,-615.03,0.00019726,2]
[346326959,1734893445148,-3976.59,0.00019726,2]
[346326960,1734893445158,-500.0,0.00019726,2]
[346326961,1734893445167,-500.0,0.00019726,2]
[346326962,1734893445176,-2011.19,0.00019726,2]
[346326963,1734893445186,-500.0,0.00019726,2]
[346326964,1734893445195,-1515.6,0.00019726,2]
[346326965,1734893445204,-500.0,0.00019726,2]
[346326966,1734893445213,-1010.5,0.00019726,2]
[346326967,1734893445222,-155.63598347,0.00019726,2]
[346326968,1734893445231,-741.02,0.00019726,2]
[346326969,1734893445241,-520.8,0.00019726,2]
[346326970,1734893445251,-1155.81,0.00019726,2]
[346326971,1734893445260,-1593.09,0.00019726,2]
[346326972,1734893445269,-1268.27,0.00019726,2]
[346326973,1734893445279,-5339.99,0.00019726,2]
[346326974,1734893445288,-14892.56,0.00019726,2]
[346326975,1734893445298,-4224.02,0.00019726,2]
[346326976,1734893445309,-500.0,0.00019726,2]
[346326977,1734893445319,-892.56,0.00019726,2]
[346326978,1734893445329,-1028.18,0.00019726,2]
[346326979,1734893445338,-500.0,0.00019726,2]
[346326980,1734893445348,-12794.92,0.00019726,2]
[346326981,1734893445358,-500.0,0.00019726,2]
[346326982,1734893445368,-711.37,0.00019726,2]
[346326983,1734893445377,-6016.44,0.00019726,2]
[346326984,1734893445387,-500.0,0.00019726,2]
[346326985,1734893445396,-8991.83,0.00019726,2]
[346326986,1734893445406,-500.0,0.00019726,2]
[346326987,1734893445415,-3613.21,0.00019726,2]
[346326988,1734893445424,-1149.84,0.00019726,2]
[346326989,1734893445434,-3377.68,0.00019726,2]
[346326990,1734893445443,-5699.75,0.00019726,2]
[346326991,1734893445453,-500.0,0.00019726,2]
[346326992,1734893445462,-2498.88,0.00019726,2]
[346326993,1734893445472,-500.0,0.00019726,2]
[346326994,1734893445481,-599.95,0.00019726,2]
[346326995,1734893445491,-500.0,0.00019726,2]
[346326996,1734893445500,-500.0,0.00019726,2]
[346326997,1734893445510,-1002.61,0.00019726,2]
[346326998,1734893445519,-2687.18,0.00019726,2]
[346326999,1734893445529,-1811.23,0.00019726,2]
[346327000,1734893445538,-2353.77,0.00019726,2]
[346327001,1734893445547,-500.0,0.00019726,2]
[346327002,1734893445562,-18711.28,0.00019726,2]
[346327003,1734893445571,-4853.99,0.00019726,2]
[346327004,1734893445581,-500.0,0.00019726,2]
[346327005,1734893445591,-1015.54,0.00019726,2]
[346327006,1734893445601,-500.0,0.00019726,2]
[346327007,1734893445610,-500.0,0.00019726,2]
[346327008,1734893445619,-500.0,0.00019726,2]
[346327009,1734893445628,-3421.22,0.00019726,2]
[346327010,1734893445640,-6217.91,0.00019726,2]
[346327011,1734893445650,-9536.05,0.00019726,2]
[346327012,1734893445660,-500.0,0.00019726,2]
[346327013,1734893445669,-500.0,0.00019726,2]
[346327014,1734893445679,-2166.83,0.00019726,2]
[346327015,1734893445689,-500.0,0.00019726,2]
[346327016,1734893445698,-1068.97,0.00019726,2]
[346327017,1734893445716,-1231.14,0.00019726,2]
[346327018,1734893445725,-886.4,0.00019726,2]
[346327019,1734893445735,-1690.59,0.00019726,2]
[346327020,1734893445744,-6895.69,0.00019726,2]
[346327021,1734893445754,-150.0,0.00019732,2]
[346327022,1734893445763,-150.0,0.00019732,2]
[346327023,1734893445772,-150.0,0.00019733,2]
[346327024,1734893445781,-150.0,0.00019733,2]
[346327025,1734893445791,-150.0,0.00019734,2]
[346327026,1734893445801,-150.0,0.00019735,2]
[346327027,1734893445811,-150.0,0.00019735,2]
[346327028,1734893445820,-150.0,0.00019743,2]
[346327029,1734893445830,-150.0,0.00019748,2]
[346327030,1734893445839,-150.0,0.0001975,2]
[346327031,1734893445848,-150.0,0.00019753,2]
[346327032,1734893445858,-150.0,0.00019757,2]
[346327033,1734893445868,-150.0,0.00019766,2]
[346327034,1734893445878,-150.0,0.00019766,2]
[346327035,1734893445887,-150.0,0.00019768,2]
[346327036,1734893445897,-150.0,0.0001977,2]
[346327037,1734893445906,-150.0,0.00019771,2]
[346327039,1734893445915,-150.0,0.00019772,2]
[346327041,1734893445925,-150.0,0.00019778,2]
[346327042,1734893445934,-150.0,0.00019781,2]
[346327043,1734893445944,-194.12,0.00019784,2]
[346327044,1734893445953,-154.0,0.00019784,2]
[346327045,1734893445963,-154.0,0.00019784,2]
[346327046,1734893445971,-154.0,0.00019784,2]
[346327047,1734893445981,-154.0,0.00019784,2]
[346327048,1734893445990,-154.0,0.00019784,2]
[346327049,1734893446000,-154.0,0.00019784,2]
[346327050,1734893446009,-154.0,0.00019784,2]
[346327051,1734893446019,-154.0,0.00019784,2]
[346327052,1734893446029,-154.0,0.00019784,2]
[346327053,1734893446039,-154.0,0.00019784,2]
[346327054,1734893446049,-154.0,0.00019784,2]
[346327055,1734893446059,-154.0,0.00019784,2]
[346327056,1734893446069,-262.8,0.00019784,2]
[346327057,1734893446078,-161.88,0.00019784,2]
[346327058,1734893446088,-150.0,0.00019788,2]
[346327059,1734893446097,-150.0,0.00019789,2]
[346327060,1734893446107,-150.0,0.0001979,2]
[346327061,1734893446116,-150.0,0.00019796,2]
[346327062,1734893446126,-150.0,0.000198,2]
[346327063,1734893446136,-1378.0,0.000198,2]
[346327064,1734893446145,-3000.0,0.000198,2]
[346327065,1734893446155,-302.81959201,0.00019809,2]
[346327066,1734893446164,-150.0,0.00019809,2]
[346327067,1734893446174,-150.0,0.0001981,2]
[346327068,1734893446184,-150.0,0.00019814,2]
[346327069,1734893446193,-150.0,0.00019826,2]
[346327070,1734893446203,-6854.862,0.00019827,2]
[346327071,1734893446213,-319.773,0.00019827,2]
[346327072,1734893446223,-150.0,0.00019829,2]
[346327073,1734893446232,-150.0,0.00019832,2]
[346327074,1734893446241,-150.0,0.00019836,2]
[346327075,1734893446251,-500.0,0.00019839,2]
[346327076,1734893446260,-500.0,0.0001984,2]
[346327077,1734893446270,-150.0,0.0001984,2]
[346327078,1734893446279,-500.0,0.0001984,2]
[346327079,1734893446289,-500.0,0.0001984,2]
[346327080,1734893446299,-500.0,0.0001984,2]
[346327081,1734893446310,-150.0,0.00019843,2]
[346327082,1734893446319,-150.0,0.00019843,2]
[346327083,1734893446328,-150.0,0.00019851,2]
[346327084,1734893446338,-150.0,0.00019854,2]
[346327085,1734893446348,-150.0,0.00019855,2]
[346327086,1734893446357,-150.0,0.00019855,2]
[346327087,1734893446367,-150.0,0.00019864,2]
[346327088,1734893446376,-859.02289266,0.00019868,2]
[346327089,1734893446386,-150.0,0.00019871,2]
[346327090,1734893446396,-150.0,0.00019875,2]
[346327091,1734893446406,-150.0,0.00019875,2]
[346327092,1734893446416,-1000.94,0.00019878,2]
[346327093,1734893446426,-150.0,0.00019878,2]
[346327094,1734893446436,-150.0,0.00019879,2]
[346327095,1734893446446,-150.0,0.00019879,2]
[346327096,1734893446456,-150.0,0.0001988,2]
[346327097,1734893446465,-150.0,0.00019882,2]
[346327098,1734893446479,-150.0,0.00019884,2]
[346327099,1734893446489,-150.0,0.00019887,2]
[346327100,1734893446499,-150.0,0.00019889,2]
[346327101,1734893446509,-22256.35701911,0.0001989,2]
[346327102,1734893446519,-5800.0,0.00019892,2]
[346327103,1734893446529,-150.0,0.00019893,2]
[346327104,1734893446538,-836.32845607,0.000199,2]
[346327105,1734893446548,-220.0,0.000199,2]
[346327106,1734893446560,-5800.0,0.000199,2]
[346327107,1734893446570,-150.0,0.000199,2]
[346327108,1734893446579,-1332376.0357341,0.000199,2]
[346327109,1734893446610,-668.0496665,0.000199,2]
[346327110,1734893446625,-37335.47611913,0.000199,2]
[346327111,1734893446638,-1736.2500075,0.000199,2]
[346327112,1734893447278,-500.0,0.00019178,2]
[346327113,1734893447287,-500.0,0.00019178,2]
[346327114,1734893447297,-80.97172329,0.00019452,2]
[346327115,1734893447309,-290.86544749,0.00019452,2]
[346327116,1734893447321,-128.16282922,0.00019452,2]
[346327117,1734893447330,-137.20817078,0.00019726,2]
[346327118,1734893447342,-123.55012875,0.00019726,2]
[346327119,1734893447351,-349.27820511,0.000199,2]
[346327120,1734893447382,-850.25828172,0.000199,2]
[346327121,1734893447478,-2098.38202928,0.000199,2]
[346327122,1734893447489,-4843.8,0.000199,2]
[346327123,1734893447714,-490.08,0.00019178,2]
[346327124,1734893447724,-779.18404567,0.000199,2]
[346327125,1734893447743,-137754.71922557,0.000199,2]
[346327126,1734893447789,-48644.467185,0.000199,2]
[346327127,1734893447829,-500.0,0.000199,2]
[346327245,1734894320218,146.07673727,0.00010137,2]
[346327246,1734894320240,19.93326273,0.00010137,2]
[346327248,1734894529907,2569.08210878,0.0002,120]
[346327258,1734894603549,161.84,0.00017767,30]
[346327260,1734894632475,-161.48,0.00013699,2]
[346327261,1734894632485,-325.39103,0.00015767,2]
[346327262,1734894632544,-652.04897,0.00015767,2]
[346327263,1734894632554,-540.57792283,0.00017494,2]
[346327264,1734894632570,-169.35707717,0.00017494,2]
[346327265,1734894632579,-200.0,0.00017582,2]
[346327266,1734894632588,-1192.08293783,0.00017602,2]
[346327267,1734894632600,-443.23061424,0.00017602,2]
[346327268,1734894632723,-3356.49644793,0.00017602,2]
[346327269,1734894632733,-1000.0,0.00017646,2]
[346327270,1734894632743,-250.0,0.00017669,2]
[346327271,1734894632752,-300.0,0.00017702,2]
[346327272,1734894632762,-169.25,0.00017703,2]
[346327273,1734894632771,-580.98,0.00017703,2]
[346327274,1734894632782,-272.04,0.00017722,2]
[346327275,1734894632791,-250.0,0.00017732,2]
[346327276,1734894632800,-223.67,0.00017732,2]
[346327277,1734894632810,-526.92,0.0001776,2]
[346327278,1734894632819,-250.0,0.00017767,2]
[346327279,1734894632828,-3916.85,0.00017773,2]
[346327280,1734894632837,-150.99,0.00017999,2]
[346327282,1734894632847,-499.99,0.00017999,2]
[346327284,1734894632855,-4130.15750471,0.00018,2]
[346327286,1734894632865,-150.0,0.00018,2]
[346327288,1734894632874,-150.0,0.00018,2]
[346327290,1734894632885,-150.0,0.00018,2]
[346327292,1734894632894,-20795.96434312,0.00018,2]
[346327294,1734894632903,-491.12,0.00018,2]
[346327296,1734894632912,-505.46,0.00018,2]
[346327298,1734894632924,-502.17,0.00018,2]
[346327300,1734894632934,-491.01,0.00018,2]
[346327302,1734894632943,-490.36,0.00018,2]
[346327304,1734894632952,-500.88,0.00018,2]
[346327306,1734894632962,-977.44,0.00018031,2]
[346327308,1734894632971,-165.19,0.0001806,2]
[346327310,1734894632980,-501.39,0.000182,2]
[346327312,1734894632991,-492.76,0.0001823,2]
[346327314,1734894633000,-503.39,0.00018269,2]
[346327316,1734894633011,-499.25,0.00018321,2]
[346327318,1734894633020,-1744.25,0.00018356,2]
[346327320,1734894633030,-495.76,0.0001839,2]
[346327322,1734894633039,-490.49,0.00018483,2]
[346327323,1734894633049,-159.23,0.00018552,2]
[346327325,1734894633060,-159.23,0.00018559,2]
[346327327,1734894633069,-492.83,0.0001856,2]
[346327329,1734894633078,-495.84,0.00018562,2]
[346327331,1734894633088,-159.23,0.00018566,2]
[346327333,1734894633097,-159.23,0.00018572,2]
[346327335,1734894633107,-159.23,0.00018579,2]
[346327337,1734894633116,-159.23,0.00018585,2]
[346327339,1734894633125,-159.23,0.00018592,2]
[346327341,1734894633135,-159.23,0.00018599,2]
[346327343,1734894633145,-159.23,0.00018605,2]
[346327345,1734894633154,-159.23,0.00018612,2]
[346327347,1734894633164,-159.23,0.00018619,2]
[346327349,1734894633174,-159.23,0.00018625,2]
[346327351,1734894633183,-159.23,0.00018632,2]
[346327353,1734894633193,-159.23,0.00018639,2]
[346327355,1734894633203,-159.23,0.00018645,2]
[346327357,1734894633213,-501.77,0.00018733,2]
[346327359,1734894633223,-501.55,0.00018733,2]
[346327361,1734894633232,-497.86,0.00018733,2]
[346327363,1734894633242,-491.58,0.00018733,2]
[346327365,1734894633251,-494.01,0.00018733,2]
[346327367,1734894633260,-492.95,0.00018733,2]
[346327369,1734894633270,-501.18,0.00018983,2]
[346327371,1734894633284,-339.409,0.00019,2]
[346327373,1734894633294,-10000.0,0.00019,2]
[346327375,1734894633304,-499.96,0.00019012,2]
[346327377,1734894633313,-300.0,0.00019014,2]
[346327379,1734894633323,-495.57,0.00019037,2]
[346327381,1734894633332,-495.21,0.00019076,2]
[346327383,1734894633342,-237.23470839,0.00019078,2]
[346327385,1734894633351,-1610.79461357,0.00019078,2]
[346327387,1734894633361,-12512.9407,0.00019078,2]
[346327389,1734894633371,-5000.0,0.00019078,2]
[346327391,1734894633380,-491.42,0.00019106,2]
[346327393,1734894633390,-770.54,0.00019143,2]
[346327395,1734894633402,-770.54,0.00019143,2]
[346327397,1734894633411,-626.79,0.00019143,2]
[346327399,1734894633420,-663.33,0.00019143,2]
[346327401,1734894633429,-786.09,0.00019143,2]
[346327403,1734894633438,-237.23470834,0.00019169,2]
[346327405,1734894633448,-1610.79461349,0.00019169,2]
[346327407,1734894633457,-500.0,0.00019178,2]
[346327409,1734894633467,-500.0,0.00019178,2]
[346327411,1734894633477,-366.386732,0.00019178,2]
[346327413,1734894633487,-158.690803,0.00019178,2]
[346327415,1734894633500,-1303.191948,0.00019178,2]
[346327417,1734894633510,-500.0,0.00019178,2]
[346327419,1734894633519,-161.217857,0.00019178,2]
[346327421,1734894633531,-500.0,0.00019178,2]
[346327423,1734894633540,-153.880686,0.00019178,2]
[346327425,1734894633550,-632.94,0.00019178,2]
[346327427,1734894633560,-500.0,0.00019178,2]
[346327429,1734894633569,-500.0,0.00019178,2]
[346327431,1734894633579,-500.0,0.00019178,2]
[346327433,1734894633589,-500.0,0.00019178,2]
[346327435,1734894633599,-500.0,0.00019178,2]
[346327437,1734894633608,-500.0,0.00019178,2]
[346327439,1734894633618,-500.0,0.00019178,2]
[346327441,1734894633627,-500.0,0.00019178,2]
[346327443,1734894633636,-500.0,0.00019178,2]
[346327445,1734894633645,-500.0,0.00019178,2]
[346327447,1734894633655,-500.0,0.00019178,2]
[346327449,1734894633664,-500.0,0.00019178,2]
[346327451,1734894633673,-500.0,0.00019178,2]
[346327453,1734894633682,-500.0,0.00019178,2]
[346327454,1734894633692,-500.0,0.00019178,2]
[346327456,1734894633702,-500.0,0.00019178,2]
[346327458,1734894633711,-500.0,0.00019178,2]
[346327460,1734894633720,-500.0,0.00019178,2]
[346327462,1734894633730,-500.0,0.00019178,2]
[346327464,1734894633739,-500.0,0.00019178,2]
[346327466,1734894633749,-500.0,0.00019178,2]
[346327468,1734894633758,-500.0,0.00019178,2]
[346327470,1734894633768,-500.0,0.00019178,2]
[346327472,1734894633778,-219.90631529,0.00019178,2]
[346327475,1734894633792,-280.09368471,0.00019178,2]
[346327477,1734894633801,-500.0,0.00019178,2]
[346327479,1734894633811,-500.0,0.00019178,2]
[346327480,1734894633820,-500.0,0.00019178,2]
[346327482,1734894633829,-501.24,0.00019178,2]
[346327484,1734894633838,-500.0,0.00019178,2]
[346327486,1734894633848,-500.0,0.00019178,2]
[346327488,1734894633857,-500.0,0.00019178,2]
[346327490,1734894633867,-500.0,0.00019178,2]
[346327492,1734894633876,-500.0,0.00019178,2]
[346327494,1734894633886,-500.0,0.00019178,2]
[346327496,1734894633895,-500.0,0.00019178,2]
[346327498,1734894633904,-631.81,0.00019178,2]
[346327500,1734894633914,-500.0,0.00019178,2]
[346327502,1734894633925,-500.0,0.00019178,2]
[346327504,1734894633934,-500.0,0.00019178,2]
[346327506,1734894633943,-500.0,0.00019178,2]
[346327508,1734894633952,-500.0,0.00019178,2]
[346327510,1734894633963,-500.0,0.00019178,2]
[346327512,1734894633972,-500.0,0.00019178,2]
[346327514,1734894633981,-500.0,0.00019178,2]
[346327516,1734894633991,-500.0,0.00019178,2]
[346327518,1734894634000,-502.02,0.00019178,2]
[346327520,1734894634011,-564.56541703,0.00019178,2]
[346327522,1734894634020,-500.0,0.00019178,2]
[346327524,1734894634030,-500.0,0.00019178,2]
[346327526,1734894634039,-500.0,0.00019178,2]
[346327528,1734894634049,-500.0,0.00019178,2]
[346327530,1734894634058,-500.0,0.00019178,2]
[346327532,1734894634068,-500.0,0.00019178,2]
[346327534,1734894634078,-500.0,0.00019178,2]
[346327536,1734894634089,-291.22779043,0.00019178,2]
[346327538,1734894634098,-500.0,0.00019178,2]
[346327540,1734894634107,-500.0,0.00019178,2]
[346327542,1734894634116,-500.0,0.00019178,2]
[346327544,1734894634126,-500.0,0.00019178,2]
[346327546,1734894634135,-500.0,0.00019178,2]
[346327548,1734894634144,-500.0,0.00019178,2]
[346327550,1734894634153,-500.0,0.00019178,2]
[346327552,1734894634162,-500.0,0.00019178,2]
[346327554,1734894634172,-500.0,0.00019178,2]
[346327556,1734894634182,-500.0,0.00019178,2]
[346327558,1734894634191,-500.0,0.00019178,2]
[346327559,1734894634200,-500.0,0.00019178,2]
[346327561,1734894634210,-500.0,0.00019178,2]
[346327563,1734894634219,-500.0,0.00019178,2]
[346327565,1734894634231,-500.0,0.00019178,2]
[346327567,1734894634243,-500.0,0.00019178,2]
[346327569,1734894634253,-500.0,0.00019178,2]
[346327571,1734894634262,-500.0,0.00019178,2]
[346327573,1734894634272,-500.0,0.00019178,2]
[346327575,1734894634281,-500.0,0.00019178,2]
[346327577,1734894634290,-500.0,0.00019178,2]
[346327579,1734894634300,-500.0,0.00019178,2]
[346327581,1734894634309,-500.0,0.00019178,2]
[346327583,1734894634319,-500.0,0.00019178,2]
[346327585,1734894634328,-500.0,0.00019178,2]
[346327587,1734894634338,-188.69559507,0.00019178,2]
[346327589,1734894634348,-500.0,0.00019178,2]
[346327591,1734894634357,-500.0,0.00019178,2]
[346327593,1734894634366,-500.0,0.00019178,2]
[346327595,1734894634376,-500.0,0.00019178,2]
[346327597,1734894634385,-500.0,0.00019178,2]
[346327599,1734894634394,-500.0,0.00019178,2]
[346327601,1734894634404,-500.0,0.00019178,2]
[346327603,1734894634413,-500.0,0.00019178,2]
[346327605,1734894634423,-500.0,0.00019178,2]
[346327606,1734894634432,-500.0,0.00019178,2]
[346327607,1734894634442,-500.0,0.00019178,2]
[346327608,1734894634452,-500.0,0.00019178,2]
[346327609,1734894634461,-502.7,0.00019178,2]
[346327610,1734894634470,-500.0,0.00019178,2]
[346327611,1734894634479,-234.9480942,0.00019178,2]
[346327612,1734894634489,-500.0,0.00019178,2]
[346327613,1734894634498,-500.0,0.00019178,2]
[346327614,1734894634507,-500.0,0.00019178,2]
[346327615,1734894634517,-500.0,0.00019178,2]
[346327616,1734894634526,-500.0,0.00019178,2]
[346327617,1734894634536,-500.0,0.00019178,2]
[346327618,1734894634545,-500.0,0.00019178,2]
[346327619,1734894634554,-500.0,0.00019178,2]
[346327620,1734894634563,-500.0,0.00019178,2]
[346327621,1734894634572,-500.0,0.00019178,2]
[346327622,1734894634582,-500.0,0.00019178,2]
[346327623,1734894634591,-501.54085766,0.00019178,2]
[346327624,1734894634600,-500.0,0.00019178,2]
[346327625,1734894634610,-500.0,0.00019178,2]
[346327626,1734894634619,-500.0,0.00019178,2]
[346327627,1734894634628,-402.16808646,0.00019178,2]
[346327628,1734894634644,-97.83191354,0.00019178,2]
[346327629,1734894634654,-500.0,0.00019178,2]
[346327630,1734894634664,-500.0,0.00019178,2]
[346327631,1734894634673,-500.0,0.00019178,2]
[346327632,1734894634683,-496.86808646,0.00019178,2]
[346327633,1734894634702,-3.13191354,0.00019178,2]
[346327634,1734894634711,-500.0,0.00019178,2]
[346327635,1734894634721,-525.53418066,0.00019178,2]
[346327636,1734894634730,-500.0,0.00019178,2]
[346327637,1734894634740,-500.0,0.00019178,2]
[346327638,1734894634749,-500.0,0.00019178,2]
[346327639,1734894634758,-500.0,0.00019178,2]
[346327640,1734894634767,-500.0,0.00019178,2]
[346327641,1734894634778,-500.0,0.00019178,2]
[346327642,1734894634788,-500.0,0.00019178,2]